[Event "*** Titled Tuesday Blitz"]
[Site "Chess.com"]
[Date "2020.04.28"]
[Round "1"]
[White "Iyael"]
[Black "SaqoChess_Twitch"]
[Result "1-0"]
[WhiteElo "2125"]
[BlackElo "2479"]
[TimeControl "180+1"]
[EndTime "10:07:09 PDT"]
[Termination "Iyael won by resignation"]

1. e4 {[%clk 0:02:58.6]} 1... c5 {[%clk 0:02:58.1]} 2. c3 {[%clk 0:02:57.4]}
2... d5 {[%clk 0:02:56.2]} 3. exd5 {[%clk 0:02:56.2]} 3... Qxd5 {[%clk
0:02:57.1]} 4. d4 {[%clk 0:02:56.1]} 4... e6 {[%clk 0:02:56.2]} 5. Nf3 {[%clk
0:02:56.1]} 5... Nf6 {[%clk 0:02:54.2]} 6. Be2 {[%clk 0:02:55.7]} 6... Nc6
{[%clk 0:02:54]} 7. O-O {[%clk 0:02:55.7]} 7... Be7 {[%clk 0:02:54.5]} 8. c4
{[%clk 0:02:54.8]} 8... Qd6 {[%clk 0:02:53.2]} 9. dxc5 {[%clk 0:02:54.5]} 9...
Qxd1 {[%clk 0:02:51.3]} 10. Rxd1 {[%clk 0:02:53.1]} 10... Bxc5 {[%clk
0:02:52.2]} 11. Nc3 {[%clk 0:02:51.7]} 11... O-O {[%clk 0:02:49.1]} 12. a3
{[%clk 0:02:50.3]} 12... a6 {[%clk 0:02:48.2]} 13. b4 {[%clk 0:02:49.2]} 13...
Ba7 {[%clk 0:02:46.8]} 14. Bf4 {[%clk 0:02:48.6]} 14... Bd7 {[%clk 0:02:43.1]}
15. Rd2 {[%clk 0:02:38.9]} 15... Rfd8 {[%clk 0:02:36.1]} 16. Bc7 {[%clk
0:02:30.8]} 16... Rdc8 {[%clk 0:02:33.9]} 17. Bd6 {[%clk 0:02:30.5]} 17... Be8
{[%clk 0:02:33.3]} 18. c5 {[%clk 0:02:28.4]} 18... Rd8 {[%clk 0:02:31.8]} 19.
Rad1 {[%clk 0:02:26.8]} 19... Bb8 {[%clk 0:02:28.5]} 20. Bxb8 {[%clk 0:02:20.2]}
20... Rxd2 {[%clk 0:02:27]} 21. Rxd2 {[%clk 0:02:18.8]} 21... Rxb8 {[%clk
0:02:27.4]} 22. Bc4 {[%clk 0:02:13.1]} 22... Rd8 {[%clk 0:02:26.3]} 23. Rxd8
{[%clk 0:02:11.5]} 23... Nxd8 {[%clk 0:02:27.2]} 24. Ne5 {[%clk 0:02:11.5]}
24... Nc6 {[%clk 0:02:23.8]} 25. Nd3 {[%clk 0:02:06.4]} 25... Kf8 {[%clk
0:02:17.2]} 26. a4 {[%clk 0:02:03.4]} 26... Ke7 {[%clk 0:02:15.6]} 27. b5 {[%clk
0:02:02]} 27... axb5 {[%clk 0:02:15.7]} 28. axb5 {[%clk 0:02:01]} 28... Na5
{[%clk 0:02:13.9]} 29. Ba2 {[%clk 0:02:00.6]} 29... Bd7 {[%clk 0:02:08.4]} 30.
Kf1 {[%clk 0:02:00]} 30... Ne8 {[%clk 0:02:07.9]} 31. Ne5 {[%clk 0:01:55.3]}
31... f6 {[%clk 0:02:02.4]} 32. Nxd7 {[%clk 0:01:52.2]} 32... Kxd7 {[%clk
0:02:03.3]} 33. Ke2 {[%clk 0:01:52.3]} 33... b6 {[%clk 0:01:53.4]} 34. cxb6
{[%clk 0:01:48.4]} 34... Nd6 {[%clk 0:01:53.7]} 35. Kd3 {[%clk 0:01:47.5]} 35...
e5 {[%clk 0:01:52.9]} 36. Bd5 {[%clk 0:01:43.2]} 36... Nab7 {[%clk 0:01:36.1]}
37. Bc6+ {[%clk 0:01:41.7]} 37... Ke6 {[%clk 0:01:34.5]} 38. Nd5 {[%clk
0:01:41.4]} 38... Nc5+ {[%clk 0:01:25.7]} 39. Kc3 {[%clk 0:01:34.3]} 39... Nce4+
{[%clk 0:01:10.1]} 40. Kb4 {[%clk 0:01:33.7]} 40... Nxf2 {[%clk 0:00:59.3]} 41.
b7 {[%clk 0:01:32.5]} 41... Nd3+ {[%clk 0:00:53.9]} 42. Ka5 {[%clk 0:01:28.2]}
42... Nxb7+ {[%clk 0:00:50.6]} 43. Bxb7 {[%clk 0:01:28.1]} 43... e4 {[%clk
0:00:51.2]} 44. Nc3 {[%clk 0:01:23.3]} 44... e3 {[%clk 0:00:49.3]} 45. Bf3
{[%clk 0:01:19.7]} 45... Kd7 {[%clk 0:00:44.4]} 46. b6 {[%clk 0:01:18.7]} 46...
Nc5 {[%clk 0:00:40.7]} 47. Kb5 {[%clk 0:01:16.7]} 47... Ne6 {[%clk 0:00:39.2]}
48. Ka6 {[%clk 0:01:16.2]} 48... Nc5+ {[%clk 0:00:32.3]} 49. Ka7 {[%clk
0:01:15.6]} 49... Kd6 {[%clk 0:00:31.2]} 50. b7 {[%clk 0:01:14.9]} 50... Nxb7
{[%clk 0:00:30.2]} 51. Kxb7 {[%clk 0:01:15]} 51... f5 {[%clk 0:00:29.4]} 52. Ne2
{[%clk 0:01:13.6]} 52... g5 {[%clk 0:00:29.1]} 53. h3 {[%clk 0:01:12.3]} 53...
Kc5 {[%clk 0:00:24.6]} 54. Kc7 {[%clk 0:01:11.8]} 54... Kc4 {[%clk 0:00:22.2]}
55. Kd6 {[%clk 0:01:11.5]} 55... h5 {[%clk 0:00:20.2]} 56. Bxh5 {[%clk
0:01:08.8]} 56... Kd3 {[%clk 0:00:20.5]} 57. Bf3 {[%clk 0:01:07.5]} 57... Kd2
{[%clk 0:00:18.3]} 58. Ke5 {[%clk 0:01:06.9]} 58... f4 {[%clk 0:00:19.2]} 59.
Kf5 {[%clk 0:01:06.4]} 59... Ke1 {[%clk 0:00:20.1]} 60. Kxg5 {[%clk 0:01:06.4]}
60... Kf2 {[%clk 0:00:21]} 61. Kxf4 {[%clk 0:01:06.6]} 61... Kf1 {[%clk
0:00:20.6]} 62. Kxe3 {[%clk 0:01:06.7]} 1-0

[Event "*** Titled Tuesday Blitz"]
[Site "Chess.com"]
[Date "2020.04.28"]
[Round "1"]
[White "Oglob71"]
[Black "harkerchess"]
[Result "1-0"]
[WhiteElo "2483"]
[BlackElo "2007"]
[TimeControl "180+1"]
[EndTime "10:07:09 PDT"]
[Termination "Oglob71 won by checkmate"]

1. d4 {[%clk 0:03:00.9]} 1... d5 {[%clk 0:02:55.4]} 2. Nf3 {[%clk 0:03:01.2]}
2... Nf6 {[%clk 0:02:54.3]} 3. c4 {[%clk 0:03:01.7]} 3... c6 {[%clk 0:02:53.4]}
4. e3 {[%clk 0:03:00.2]} 4... dxc4 {[%clk 0:02:52.9]} 5. Bxc4 {[%clk 0:02:59.3]}
5... Bf5 {[%clk 0:02:50.3]} 6. O-O {[%clk 0:02:59.5]} 6... e6 {[%clk 0:02:49.8]}
7. Nc3 {[%clk 0:02:59.5]} 7... Be7 {[%clk 0:02:48.3]} 8. Qe2 {[%clk 0:03:00]}
8... O-O {[%clk 0:02:47.8]} 9. e4 {[%clk 0:03:00.4]} 9... Bg6 {[%clk 0:02:47.7]}
10. Rd1 {[%clk 0:03:00.9]} 10... Nbd7 {[%clk 0:02:46.4]} 11. Bf4 {[%clk
0:02:59.6]} 11... Re8 {[%clk 0:02:45.5]} 12. Bb3 {[%clk 0:02:59.9]} 12... Qa5
{[%clk 0:02:39.3]} 13. h3 {[%clk 0:02:58.4]} 13... c5 {[%clk 0:02:36.6]} 14. e5
{[%clk 0:02:56.3]} 14... Nh5 {[%clk 0:02:32.8]} 15. Bh2 {[%clk 0:02:53.9]} 15...
cxd4 {[%clk 0:02:31.4]} 16. Rxd4 {[%clk 0:02:54.2]} 16... Rad8 {[%clk
0:01:53.9]} 17. Rad1 {[%clk 0:02:54]} 17... Nc5 {[%clk 0:01:49.5]} 18. g4 {[%clk
0:02:52.1]} 18... Nxb3 {[%clk 0:01:44]} 19. axb3 {[%clk 0:02:51.7]} 19... Qb6
{[%clk 0:01:38]} 20. Rxd8 {[%clk 0:02:49.5]} 20... Rxd8 {[%clk 0:01:37.3]} 21.
Rxd8+ {[%clk 0:02:48.6]} 21... Bxd8 {[%clk 0:01:36.8]} 22. gxh5 {[%clk
0:02:43.3]} 22... Bxh5 {[%clk 0:01:35.7]} 23. Kg2 {[%clk 0:02:42.9]} 23... Qxb3
{[%clk 0:01:34]} 24. Nd4 {[%clk 0:02:32.9]} 24... Qxc3 {[%clk 0:01:18.9]} 25.
bxc3 {[%clk 0:02:31.5]} 25... Bxe2 {[%clk 0:01:18.2]} 26. Nxe2 {[%clk 0:02:32]}
26... Kf8 {[%clk 0:01:16.7]} 27. Bf4 {[%clk 0:02:29.6]} 27... Bc7 {[%clk
0:01:12.6]} 28. Kf3 {[%clk 0:02:29.7]} 28... Ke7 {[%clk 0:01:11.9]} 29. Ke4
{[%clk 0:02:30]} 29... b5 {[%clk 0:01:08.5]} 30. Bc1 {[%clk 0:02:29.9]} 30... a5
{[%clk 0:01:08.3]} 31. Ba3+ {[%clk 0:02:29.8]} 31... Kd7 {[%clk 0:01:04.1]} 32.
Nd4 {[%clk 0:02:30.2]} 32... b4 {[%clk 0:01:03.2]} 33. cxb4 {[%clk 0:02:29.7]}
33... axb4 {[%clk 0:01:04.1]} 34. Bxb4 {[%clk 0:02:29.4]} 34... Bb6 {[%clk
0:01:02.5]} 35. f4 {[%clk 0:02:28.1]} 35... f6 {[%clk 0:01:00.7]} 36. Bc3 {[%clk
0:02:24.6]} 36... fxe5 {[%clk 0:00:59.4]} 37. fxe5 {[%clk 0:02:24.8]} 37... Ke7
{[%clk 0:00:55.3]} 38. Nf3 {[%clk 0:02:23.5]} 38... h6 {[%clk 0:00:54.2]} 39.
Bd4 {[%clk 0:02:23.4]} 39... Ba5 {[%clk 0:00:52.1]} 40. Kf4 {[%clk 0:02:23.6]}
40... Kf7 {[%clk 0:00:50.4]} 41. Kg4 {[%clk 0:02:24]} 41... Bc7 {[%clk
0:00:46.8]} 42. Bf2 {[%clk 0:02:19.5]} 42... Kg6 {[%clk 0:00:39.3]} 43. h4
{[%clk 0:02:16.4]} 43... Kf7 {[%clk 0:00:34.4]} 44. Bg3 {[%clk 0:02:15.5]} 44...
Kg6 {[%clk 0:00:29.5]} 45. Nd4 {[%clk 0:02:13.5]} 45... Kf7 {[%clk 0:00:29]} 46.
Nb5 {[%clk 0:02:12.9]} 46... Bd8 {[%clk 0:00:24.7]} 47. Nd6+ {[%clk 0:02:12.6]}
47... Ke7 {[%clk 0:00:24.4]} 48. h5 {[%clk 0:02:12.2]} 48... Bb6 {[%clk
0:00:20.5]} 49. Bh4+ {[%clk 0:02:10.4]} 49... Kd7 {[%clk 0:00:20.3]} 50. Kf4
{[%clk 0:02:10.7]} 50... Bd4 {[%clk 0:00:20]} 51. Ke4 {[%clk 0:02:09.7]} 51...
Bb2 {[%clk 0:00:19.4]} 52. Nc4 {[%clk 0:02:09.4]} 52... Bc1 {[%clk 0:00:19.2]}
53. Bf2 {[%clk 0:02:08.5]} 53... Kc6 {[%clk 0:00:18.9]} 54. Be3 {[%clk
0:02:08.8]} 54... Bxe3 {[%clk 0:00:17.9]} 55. Nxe3 {[%clk 0:02:08.6]} 55... Kd7
{[%clk 0:00:17.7]} 56. Nc2 {[%clk 0:02:00.1]} 56... Ke7 {[%clk 0:00:17.8]} 57.
Nd4 {[%clk 0:02:00.7]} 57... Kf7 {[%clk 0:00:17.9]} 58. Kf4 {[%clk 0:01:59]}
58... Ke7 {[%clk 0:00:18]} 59. Ke3 {[%clk 0:01:57.6]} 59... Kf7 {[%clk
0:00:18.3]} 60. Ke4 {[%clk 0:01:57.8]} 60... Ke7 {[%clk 0:00:18.1]} 61. Nb5
{[%clk 0:01:55]} 61... Kf7 {[%clk 0:00:17.7]} 62. Nd6+ {[%clk 0:01:55.2]} 62...
Ke7 {[%clk 0:00:17.7]} 63. Kd4 {[%clk 0:01:54.1]} 63... Kd7 {[%clk 0:00:17.9]}
64. Kc5 {[%clk 0:01:54.2]} 64... Kc7 {[%clk 0:00:18.2]} 65. Ne8+ {[%clk
0:01:52.6]} 65... Kd7 {[%clk 0:00:18.2]} 66. Nxg7 {[%clk 0:01:53.1]} 66... Ke7
{[%clk 0:00:18.5]} 67. Kc6 {[%clk 0:01:45.1]} 67... Kf7 {[%clk 0:00:18.6]} 68.
Kd6 {[%clk 0:01:45.4]} 68... Kxg7 {[%clk 0:00:19]} 69. Kxe6 {[%clk 0:01:45.9]}
69... Kf8 {[%clk 0:00:19.9]} 70. Kd7 {[%clk 0:01:45.8]} 70... Kf7 {[%clk
0:00:18.5]} 71. e6+ {[%clk 0:01:46.3]} 71... Kg7 {[%clk 0:00:19.2]} 72. e7
{[%clk 0:01:45.9]} 72... Kh7 {[%clk 0:00:19.1]} 73. e8=Q {[%clk 0:01:44.6]}
73... Kg7 {[%clk 0:00:19.6]} 74. Qg6+ {[%clk 0:01:44]} 74... Kf8 {[%clk
0:00:19]} 75. Qxh6+ {[%clk 0:01:44]} 75... Kg8 {[%clk 0:00:19.1]} 76. Qg5+
{[%clk 0:01:40.5]} 76... Kh8 {[%clk 0:00:19.1]} 77. h6 {[%clk 0:01:39]} 77...
Kh7 {[%clk 0:00:18.7]} 78. Qg7# {[%clk 0:01:39.5]} 1-0

[Event "*** Titled Tuesday Blitz"]
[Site "Chess.com"]
[Date "2020.04.28"]
[Round "1"]
[White "ChessWarrior7197"]
[Black "Megagigahiper3345"]
[Result "0-1"]
[WhiteElo "2848"]
[BlackElo "2460"]
[TimeControl "180+1"]
[EndTime "10:07:11 PDT"]
[Termination "Megagigahiper3345 won by resignation"]

1. e4 {[%clk 0:03:00.9]} 1... c5 {[%clk 0:02:58.4]} 2. Nf3 {[%clk 0:02:59.7]}
2... d6 {[%clk 0:02:58.8]} 3. d4 {[%clk 0:02:57.1]} 3... cxd4 {[%clk 0:02:59.7]}
4. Nxd4 {[%clk 0:02:58]} 4... Nf6 {[%clk 0:03:00.3]} 5. Nc3 {[%clk 0:02:58.5]}
5... a6 {[%clk 0:02:59.5]} 6. Bd3 {[%clk 0:02:58.5]} 6... g6 {[%clk 0:02:58.6]}
7. f3 {[%clk 0:02:57.9]} 7... Bg7 {[%clk 0:02:58.5]} 8. Be3 {[%clk 0:02:58.3]}
8... O-O {[%clk 0:02:57.2]} 9. Qd2 {[%clk 0:02:58.6]} 9... Nc6 {[%clk 0:02:57]}
10. O-O-O {[%clk 0:02:59]} 10... Nxd4 {[%clk 0:02:49.7]} 11. Bxd4 {[%clk
0:02:59.9]} 11... Be6 {[%clk 0:02:50.3]} 12. g4 {[%clk 0:02:58.5]} 12... b5
{[%clk 0:02:50.7]} 13. g5 {[%clk 0:02:56.1]} 13... Nh5 {[%clk 0:02:43.3]} 14.
Bxg7 {[%clk 0:02:55.3]} 14... Kxg7 {[%clk 0:02:26.6]} 15. f4 {[%clk 0:02:48.3]}
15... b4 {[%clk 0:02:22.4]} 16. Ne2 {[%clk 0:02:48.4]} 16... Qa5 {[%clk
0:02:11.3]} 17. a3 {[%clk 0:02:46.9]} 17... Rab8 {[%clk 0:02:05.6]} 18. Nd4
{[%clk 0:02:44.9]} 18... Qa4 {[%clk 0:01:51.9]} 19. Be2 {[%clk 0:02:29.9]} 19...
Rfc8 {[%clk 0:00:52.4]} 20. Bxh5 {[%clk 0:01:04.2]} 20... bxa3 {[%clk
0:00:42.7]} 21. Nxe6+ {[%clk 0:00:52.6]} 21... Kg8 {[%clk 0:00:38.4]} 22. Qd3
{[%clk 0:00:36.7]} 22... Rxb2 {[%clk 0:00:21.6]} 23. Rd2 {[%clk 0:00:20.5]}
23... Qb4 {[%clk 0:00:14.6]} 24. Kd1 {[%clk 0:00:20.9]} 24... Rb1+ {[%clk
0:00:13.1]} 25. Ke2 {[%clk 0:00:21.4]} 25... Rxh1 {[%clk 0:00:13.2]} 26. Qxa6
{[%clk 0:00:08.5]} 26... Rxh2+ {[%clk 0:00:12.1]} 27. Kf1 {[%clk 0:00:07.9]}
27... Qc4+ {[%clk 0:00:10.9]} 28. Qxc4 {[%clk 0:00:06]} 28... Rxc4 {[%clk
0:00:11.8]} 29. Rxh2 {[%clk 0:00:06.3]} 29... a2 {[%clk 0:00:12]} 30. Ke2 {[%clk
0:00:05.6]} 30... a1=Q {[%clk 0:00:12.3]} 31. Kd3 {[%clk 0:00:06.5]} 31... Qc3+
{[%clk 0:00:11.9]} 0-1

[Event "*** Titled Tuesday Blitz"]
[Site "Chess.com"]
[Date "2020.04.28"]
[Round "1"]
[White "Luibov_AN"]
[Black "LuckSlayeer"]
[Result "0-1"]
[WhiteElo "2113"]
[BlackElo "2509"]
[TimeControl "180+1"]
[EndTime "10:07:15 PDT"]
[Termination "LuckSlayeer won by resignation"]

1. d4 {[%clk 0:02:56.9]} 1... Nf6 {[%clk 0:02:59.4]} 2. Nf3 {[%clk 0:02:54.9]}
2... e6 {[%clk 0:02:59.3]} 3. c4 {[%clk 0:02:54.3]} 3... Bb4+ {[%clk 0:02:58.6]}
4. Nbd2 {[%clk 0:02:52.1]} 4... O-O {[%clk 0:02:58.1]} 5. Qc2 {[%clk 0:02:51.6]}
5... d5 {[%clk 0:02:54.6]} 6. g3 {[%clk 0:02:50.3]} 6... dxc4 {[%clk 0:02:43.5]}
7. Qxc4 {[%clk 0:02:49.7]} 7... Be7 {[%clk 0:02:30.6]} 8. Bg2 {[%clk 0:02:48]}
8... Nbd7 {[%clk 0:02:26.2]} 9. O-O {[%clk 0:02:44.1]} 9... c5 {[%clk
0:02:26.3]} 10. e3 {[%clk 0:02:40.2]} 10... cxd4 {[%clk 0:02:25.5]} 11. Nxd4
{[%clk 0:02:39.3]} 11... Ne5 {[%clk 0:02:14.4]} 12. Qb3 {[%clk 0:02:38.4]} 12...
Qb6 {[%clk 0:02:09.2]} 13. N2f3 {[%clk 0:02:30.8]} 13... Nxf3+ {[%clk
0:02:01.6]} 14. Bxf3 {[%clk 0:02:30]} 14... e5 {[%clk 0:01:57.7]} 15. Ne2 {[%clk
0:02:06.3]} 15... e4 {[%clk 0:01:51.4]} 16. Bg2 {[%clk 0:02:05.6]} 16... Be6
{[%clk 0:01:47.7]} 17. Qa4 {[%clk 0:02:05.3]} 17... Rac8 {[%clk 0:01:42.7]} 18.
Nd4 {[%clk 0:02:02.6]} 18... Bc4 {[%clk 0:01:40.8]} 19. Re1 {[%clk 0:01:54.9]}
19... Bd3 {[%clk 0:01:40.6]} 20. a3 {[%clk 0:01:47.3]} 20... Rc4 {[%clk
0:01:34.3]} 21. b4 {[%clk 0:01:43.2]} 21... Rfc8 {[%clk 0:01:28.1]} 22. Bb2
{[%clk 0:01:23.8]} 22... Ng4 {[%clk 0:01:27.9]} 23. h3 {[%clk 0:01:23.1]} 23...
Ne5 {[%clk 0:01:27.7]} 24. Nf5 {[%clk 0:01:08.4]} 24... Qe6 {[%clk 0:00:56]} 25.
g4 {[%clk 0:00:44.2]} 25... Bf6 {[%clk 0:00:45.8]} 26. Rac1 {[%clk 0:00:18.6]}
26... Bc2 {[%clk 0:00:35.3]} 27. Qa5 {[%clk 0:00:16.8]} 27... Nf3+ {[%clk
0:00:33.1]} 28. Bxf3 {[%clk 0:00:16.5]} 28... Bxb2 {[%clk 0:00:33.7]} 29. Rxc2
{[%clk 0:00:15.6]} 29... Rxc2 {[%clk 0:00:33.3]} 30. Bg2 {[%clk 0:00:15.7]}
30... Rc1 {[%clk 0:00:29.1]} 31. Rxc1 {[%clk 0:00:14.2]} 31... Rxc1+ {[%clk
0:00:30]} 32. Kh2 {[%clk 0:00:14.4]} 32... Be5+ {[%clk 0:00:26.6]} 33. Ng3
{[%clk 0:00:14.1]} 33... Rc8 {[%clk 0:00:21.5]} 34. Qxa7 {[%clk 0:00:13.1]}
34... b6 {[%clk 0:00:20.6]} 35. Qb7 {[%clk 0:00:11.9]} 35... Re8 {[%clk
0:00:19.9]} 36. Bxe4 {[%clk 0:00:04.2]} 36... Bxg3+ {[%clk 0:00:19.8]} 37. fxg3
{[%clk 0:00:03]} 37... Qxe4 {[%clk 0:00:20]} 0-1

[Event "*** Titled Tuesday Blitz"]
[Site "Chess.com"]
[Date "2020.04.28"]
[Round "1"]
[White "MasterKroket"]
[Black "Dynamikus"]
[Result "0-1"]
[WhiteElo "2403"]
[BlackElo "2758"]
[TimeControl "180+1"]
[EndTime "10:07:16 PDT"]
[Termination "Dynamikus won by checkmate"]

1. d4 {[%clk 0:03:00.9]} 1... d5 {[%clk 0:02:59.1]} 2. c4 {[%clk 0:03:00.6]}
2... c6 {[%clk 0:02:59.5]} 3. Nf3 {[%clk 0:02:59.4]} 3... Nf6 {[%clk 0:02:59.7]}
4. Nc3 {[%clk 0:02:59.6]} 4... a6 {[%clk 0:02:58.8]} 5. c5 {[%clk 0:02:59.3]}
5... Bf5 {[%clk 0:02:58.5]} 6. g3 {[%clk 0:02:56.4]} 6... Nbd7 {[%clk
0:02:58.4]} 7. Bg2 {[%clk 0:02:56.4]} 7... g6 {[%clk 0:02:56.9]} 8. h3 {[%clk
0:02:56.1]} 8... Bg7 {[%clk 0:02:56.5]} 9. g4 {[%clk 0:02:55.2]} 9... Be4 {[%clk
0:02:56.6]} 10. Nxe4 {[%clk 0:02:51.9]} 10... Nxe4 {[%clk 0:02:57.5]} 11. O-O
{[%clk 0:02:42.9]} 11... O-O {[%clk 0:02:55.8]} 12. Bf4 {[%clk 0:02:37.4]} 12...
Re8 {[%clk 0:02:52.6]} 13. Nd2 {[%clk 0:02:09]} 13... Nxd2 {[%clk 0:02:37.5]}
14. Qxd2 {[%clk 0:02:09]} 14... e5 {[%clk 0:02:37.9]} 15. Bg5 {[%clk 0:02:03.4]}
15... Qc7 {[%clk 0:02:30.7]} 16. e3 {[%clk 0:02:03.1]} 16... Nf8 {[%clk
0:02:24.9]} 17. dxe5 {[%clk 0:01:52.6]} 17... Bxe5 {[%clk 0:02:22.8]} 18. Rad1
{[%clk 0:01:51.8]} 18... Ne6 {[%clk 0:02:20.4]} 19. Bh6 {[%clk 0:01:43]} 19...
Nxc5 {[%clk 0:02:18]} 20. f4 {[%clk 0:01:40]} 20... Bf6 {[%clk 0:02:08.9]} 21.
g5 {[%clk 0:01:37.2]} 21... Bh8 {[%clk 0:02:06.7]} 22. f5 {[%clk 0:01:35.1]}
22... Be5 {[%clk 0:02:02]} 23. fxg6 {[%clk 0:01:34.3]} 23... hxg6 {[%clk
0:01:59]} 24. Qc2 {[%clk 0:01:26.8]} 24... Bd6 {[%clk 0:01:38.3]} 25. Rf6 {[%clk
0:01:13.7]} 25... Re6 {[%clk 0:01:24.2]} 26. Rdf1 {[%clk 0:01:03.6]} 26... Rxf6
{[%clk 0:01:18.9]} 27. Rxf6 {[%clk 0:01:02.6]} 27... Qe7 {[%clk 0:01:11]} 28.
Kh1 {[%clk 0:00:45.3]} 28... Be5 {[%clk 0:01:02.8]} 29. Rf1 {[%clk 0:00:43.8]}
29... Re8 {[%clk 0:01:01.2]} 30. h4 {[%clk 0:00:43.9]} 30... Bd6 {[%clk
0:00:53]} 31. h5 {[%clk 0:00:44.3]} 31... Qe5 {[%clk 0:00:47.1]} 32. Kg1 {[%clk
0:00:17.2]} 32... Qxe3+ {[%clk 0:00:46.4]} 33. Kh1 {[%clk 0:00:13.9]} 33... Qe5
{[%clk 0:00:43.7]} 34. Kg1 {[%clk 0:00:13.7]} 34... Qh2+ {[%clk 0:00:43.7]} 35.
Kf2 {[%clk 0:00:14.1]} 35... Ne4+ {[%clk 0:00:34.5]} 36. Ke1 {[%clk 0:00:11.4]}
36... Ng3+ {[%clk 0:00:30.1]} 37. Kd1 {[%clk 0:00:10.1]} 37... Qxh5+ {[%clk
0:00:28.3]} 38. Kc1 {[%clk 0:00:09.3]} 38... Nxf1 {[%clk 0:00:24.1]} 39. Bxf1
{[%clk 0:00:09.6]} 39... Re1+ {[%clk 0:00:20.9]} 40. Kd2 {[%clk 0:00:10.3]}
40... Rxf1 {[%clk 0:00:20.9]} 41. Qc3 {[%clk 0:00:11.2]} 41... Qd1+ {[%clk
0:00:19.5]} 42. Ke3 {[%clk 0:00:10.6]} 42... Bf4# {[%clk 0:00:19.9]} 0-1

[Event "*** Titled Tuesday Blitz"]
[Site "Chess.com"]
[Date "2020.04.28"]
[Round "1"]
[White "theblitzchamp"]
[Black "Generalas"]
[Result "1-0"]
[WhiteElo "2675"]
[BlackElo "2338"]
[TimeControl "180+1"]
[EndTime "10:07:16 PDT"]
[Termination "theblitzchamp won on time"]

1. d4 {[%clk 0:03:00.9]} 1... Nf6 {[%clk 0:02:58]} 2. Bf4 {[%clk 0:03:01]} 2...
d6 {[%clk 0:02:47.1]} 3. e3 {[%clk 0:02:56.5]} 3... g6 {[%clk 0:02:46.4]} 4. Nf3
{[%clk 0:02:56]} 4... Bg7 {[%clk 0:02:46.4]} 5. c3 {[%clk 0:02:56.5]} 5... O-O
{[%clk 0:02:46.1]} 6. Nbd2 {[%clk 0:02:55.9]} 6... b6 {[%clk 0:02:45.7]} 7. h4
{[%clk 0:02:55.4]} 7... Bb7 {[%clk 0:02:44.2]} 8. Bd3 {[%clk 0:02:55.1]} 8...
Nbd7 {[%clk 0:02:31.5]} 9. e4 {[%clk 0:02:50.9]} 9... Re8 {[%clk 0:02:25.5]} 10.
Bg5 {[%clk 0:02:43.8]} 10... e5 {[%clk 0:02:20.5]} 11. d5 {[%clk 0:02:43]} 11...
h5 {[%clk 0:02:09.1]} 12. Nh2 {[%clk 0:02:37.8]} 12... c6 {[%clk 0:02:05.8]} 13.
dxc6 {[%clk 0:02:32]} 13... Bxc6 {[%clk 0:02:06.7]} 14. g4 {[%clk 0:02:32.5]}
14... Nc5 {[%clk 0:02:04.6]} 15. Bc2 {[%clk 0:02:29.2]} 15... Ne6 {[%clk
0:01:59.9]} 16. Bxf6 {[%clk 0:02:11.6]} 16... Qxf6 {[%clk 0:01:57.5]} 17. gxh5
{[%clk 0:02:12]} 17... Qxh4 {[%clk 0:01:39.6]} 18. hxg6 {[%clk 0:02:00.2]} 18...
fxg6 {[%clk 0:01:28.1]} 19. Qg4 {[%clk 0:01:59.7]} 19... Qh6 {[%clk 0:01:00.3]}
20. O-O-O {[%clk 0:01:58.2]} 20... Qh5 {[%clk 0:00:18]} 21. Bb3 {[%clk
0:01:53.6]} 21... Qxg4 {[%clk 0:00:17]} 22. Nxg4 {[%clk 0:01:54.5]} 22... Kf8
{[%clk 0:00:15.4]} 23. Rdg1 {[%clk 0:01:53.4]} 23... Nf4 {[%clk 0:00:14.4]} 24.
Kb1 {[%clk 0:01:51.6]} 24... d5 {[%clk 0:00:13.2]} 25. exd5 {[%clk 0:01:45.8]}
25... Nxd5 {[%clk 0:00:11.5]} 26. Rh7 {[%clk 0:01:42.9]} 26... Nf4 {[%clk
0:00:09.9]} 27. Nf6 {[%clk 0:01:34.7]} 27... Re7 {[%clk 0:00:06.5]} 28. Nfe4
{[%clk 0:01:29]} 28... Rd8 {[%clk 0:00:05.1]} 29. Kc2 {[%clk 0:01:27.5]} 29...
a5 {[%clk 0:00:04.9]} 30. a4 {[%clk 0:01:25.6]} 30... b5 {[%clk 0:00:05.4]} 31.
axb5 {[%clk 0:01:25.2]} 31... Bxb5 {[%clk 0:00:06.3]} 32. Rgh1 {[%clk
0:01:18.6]} 32... a4 {[%clk 0:00:06]} 33. Rh8+ {[%clk 0:01:11]} 33... Bxh8
{[%clk 0:00:05.7]} 34. Rxh8+ {[%clk 0:01:11.9]} 34... Kg7 {[%clk 0:00:06.5]} 35.
Rxd8 {[%clk 0:01:12.5]} 35... axb3+ {[%clk 0:00:06.6]} 36. Kxb3 {[%clk
0:01:13.4]} 36... Bc6 {[%clk 0:00:06.2]} 37. Rd6 {[%clk 0:01:11.8]} 37... Rb7+
{[%clk 0:00:05.1]} 38. Kc2 {[%clk 0:01:10.6]} 38... Ba4+ {[%clk 0:00:05.2]} 39.
b3 {[%clk 0:01:11.1]} 39... Be8 {[%clk 0:00:05.3]} 40. c4 {[%clk 0:01:10.6]}
40... Ra7 {[%clk 0:00:04.8]} 41. c5 {[%clk 0:01:08.2]} 41... Ra2+ {[%clk
0:00:04.5]} 42. Kc3 {[%clk 0:01:07.4]} 42... Ne2+ {[%clk 0:00:04.4]} 43. Kb4
{[%clk 0:01:07.6]} 43... Nd4 {[%clk 0:00:04]} 44. Nc4 {[%clk 0:01:05.2]} 44...
Nc6+ {[%clk 0:00:03.6]} 45. Kc3 {[%clk 0:01:04.9]} 45... Nd4 {[%clk 0:00:02.9]}
46. Rd8 {[%clk 0:00:43.8]} 1-0

[Event "*** Titled Tuesday Blitz"]
[Site "Chess.com"]
[Date "2020.04.28"]
[Round "1"]
[White "monstertube"]
[Black "harvsp123"]
[Result "0-1"]
[WhiteElo "2151"]
[BlackElo "2522"]
[TimeControl "180+1"]
[EndTime "10:07:16 PDT"]
[Termination "harvsp123 won on time"]

1. d4 {[%clk 0:03:00.7]} 1... g6 {[%clk 0:02:57.9]} 2. c4 {[%clk 0:02:58.9]}
2... Bg7 {[%clk 0:02:57.6]} 3. Nc3 {[%clk 0:02:58.6]} 3... d6 {[%clk 0:02:55.4]}
4. e4 {[%clk 0:02:57.9]} 4... e5 {[%clk 0:02:50.8]} 5. dxe5 {[%clk 0:02:55.8]}
5... Bxe5 {[%clk 0:02:44]} 6. Nf3 {[%clk 0:02:51.2]} 6... Bg7 {[%clk 0:02:43.9]}
7. Be2 {[%clk 0:02:33.2]} 7... Nc6 {[%clk 0:02:41.6]} 8. O-O {[%clk 0:02:32.3]}
8... Nf6 {[%clk 0:02:39.9]} 9. Bg5 {[%clk 0:02:30.6]} 9... h6 {[%clk 0:02:36.9]}
10. Bf4 {[%clk 0:02:29.5]} 10... O-O {[%clk 0:02:34.9]} 11. Re1 {[%clk 0:02:20]}
11... Re8 {[%clk 0:02:31.3]} 12. Bf1 {[%clk 0:02:19.3]} 12... Nh5 {[%clk
0:02:22.2]} 13. Be3 {[%clk 0:02:13.5]} 13... Nf6 {[%clk 0:01:54.4]} 14. Qc2
{[%clk 0:01:57.7]} 14... Ng4 {[%clk 0:01:44.7]} 15. Bf4 {[%clk 0:01:49.1]} 15...
Nge5 {[%clk 0:01:33.4]} 16. Nxe5 {[%clk 0:01:40.7]} 16... dxe5 {[%clk
0:01:32.3]} 17. Be3 {[%clk 0:01:31.2]} 17... Nd4 {[%clk 0:01:31]} 18. Qc1 {[%clk
0:01:19.6]} 18... c6 {[%clk 0:01:28.8]} 19. Ne2 {[%clk 0:01:04.6]} 19... Qh4
{[%clk 0:01:13.3]} 20. f3 {[%clk 0:00:45]} 20... Be6 {[%clk 0:00:37.4]} 21. b3
{[%clk 0:00:41.2]} 21... Rad8 {[%clk 0:00:28.3]} 22. Qb2 {[%clk 0:00:30.6]}
22... f5 {[%clk 0:00:26.1]} 23. exf5 {[%clk 0:00:22.2]} 23... gxf5 {[%clk
0:00:22.9]} 24. Rad1 {[%clk 0:00:21.6]} 24... c5 {[%clk 0:00:21.7]} 25. Bf2
{[%clk 0:00:16.4]} 25... Qg5 {[%clk 0:00:20.8]} 26. Qc1 {[%clk 0:00:14.8]} 26...
Nxf3+ {[%clk 0:00:19.6]} 27. Kh1 {[%clk 0:00:10.7]} 27... Qxc1 {[%clk 0:00:18]}
28. Rxc1 {[%clk 0:00:10]} 28... Nxe1 {[%clk 0:00:18.3]} 29. Rxe1 {[%clk
0:00:10.6]} 29... f4 {[%clk 0:00:17.5]} 30. Bxc5 {[%clk 0:00:10.1]} 30... Bf5
{[%clk 0:00:16.3]} 31. Ng1 {[%clk 0:00:09.1]} 31... b6 {[%clk 0:00:16]} 0-1